Cogmind - Beta 11.1 @@@ ROGUE MODE // 2022.04.24 @ 03:38:03 Player: MTF Result: Destroyed by P-80 Master with Gamma Rifle Performance ------------- Evolutions (7) 3500 Regions Visited (33) 6600 Robots Destroyed (417) 2085 Value Destroyed (18345) 18345 Prototype IDs (64) 1280 Alien Tech Used (0) 0 Bonus (9789) 9789 TOTAL SCORE: 41599 Bonus ------- Triggered High Security 500 High Alert Combat Kills 3345 Follower Combat Kills 1695 Entered Garrisons 1600 Used RIF Installer 4000 Aligned with FarCom 300 Met Data Miner 300 Scanned by Researcher 500 Friendly Fire -2451 Cogmind --------- Core Integrity 0/1300 Matter 27/300 Energy 18/100 System Corruption 49% Temperature Cool (2) Movement Hovering (60) Location -3/Testing Parts ------- > --- POWER (2) -------- (None) > --- PROPULSION (6) --- Antigrav Array > --- UTILITY (11) ----- Medium Storage Unit Advanced Gravity Neutralizer Improved Hacking Suite System Shield > --- WEAPON (2) ------- Compact HERF Cannon > --- INVENTORY (10) --- Centrium Heavy Treads Antigrav Array Advanced Energy Well (500) Compact HERF Cannon Potential Cannon Potential Cannon Peak State ------------ > --- POWER ------------ Reinforced Fission Core Graviton Reactor > --- PROPULSION ------- Heavy Treads Improved Heavy Treads Advanced Heavy Treads > --- UTILITY ---------- High-capacity Storage Unit Active Sensor Suite Layered Medium Armor Plating Advanced Force Field Relay Coupler [NC] Relay Coupler [Grunt] Relay Coupler [Sentry] Relay Coupler [Hunter] Relay Coupler [Heavy] > --- WEAPON ----------- Advanced KE Penetrator Advanced KE Penetrator > --- INVENTORY -------- Advanced Medium Treads Advanced Medium Treads Advanced Medium Treads Biometal Medium Treads Advanced Cooling System Matter Compressor Improved Medium Armor Plating Layered Medium Armor Plating Improved Remote Force Field Relay Coupler [NC] Relay Coupler [NC] Relay Coupler [Hunter] Long-range Tractor Beam Compact HERF Cannon Neutron Cannon Hypervelocity Railgun Hypervelocity Railgun Tactical Quantum Warhead Improved Remote Datajack [Rating: 144] Favorites ----------- Power Antimatter Reactor Engine Reinforced Deuterium Engine Power Core Reinforced Fission Core Reactor Antimatter Reactor Propulsion Heavy Treads Treads Heavy Treads Leg Enhanced Flexi-carbon Leg Hover Unit Antigrav Array Utility High-capacity Storage Unit Device Improved Cooling System Storage High-capacity Storage Unit Processor Advanced Targeting Computer Hackware Relay Coupler [Hunter] Protection Light Armor Plating Weapon Force Rifle Energy Gun Force Rifle Energy Cannon Heavy Plasma Cannon Ballistic Gun Heavy Battle Rifle Ballistic Cannon Mass Driver Launcher Mini Smartbomb Launcher Special Weapon Improved Remote Datajack Impact Weapon Mace Slashing Weapon Chainsword Build | -11 -10 -10 -9 -9 -9 -8 -8 -8 -8 -8 -7 -7 -7 -7 -7 -7 -7 -7 -6 -6 -6 -6 -6 -6 -6 -5 -5 -4 -4 -4 -4 -3 -3 ------- Run | Scr Mat Min Mat Min Exi Min Mat Gar Mat Gar Fac Was Fac Gar Fac Low Low Dat Pro Fac Was Fac Gar Fac Gar Fac Gar Fac Gar Fac Gar Res Tes Slots Evolved 14 | . . . 2 . . . 2 . . . 2 . . . . . . . . 2 . . . . . 2 . 2 . . . 2 . Power 1 | . . . . . . . . . . . 1 . . . . . . . . . . . . . . . . . . . . . . Propulsion 4 | . . . 1 . . . 1 . . . . . . . . . . . . . . . . . . . . . . . . 2 . Utility 9 | . . . 1 . . . 1 . . . 1 . . . . . . . . 2 . . . . . 2 . 2 . . . . . Weapon . | . . . . . . . . . . . . . . . . . . . . . . . . . . . . . . . . . . Parts Attached 573 | 5 22 12 22 2 . 9 2 14 15 3 25 12 1 14 9 17 6 3 12 16 16 7 9 19 17 4 36 33 39 12 27 122 11 Power 40 | . 2 4 2 . . . . . 1 . 3 1 . 1 1 . . . 1 1 4 . . . 2 . 3 . 4 . 4 6 . Engine 13 | . 2 3 1 . . . . . 1 . . . . . 1 . . . . 1 . . . . 2 . 1 . 1 . . . . Core 11 | . . 1 1 . . . . . . . 3 . . 1 . . . . . . . . . . . . 1 . 2 . 2 . . Reactor 16 | . . . . . . . . . . . . 1 . . . . . . 1 . 4 . . . . . 1 . 1 . 2 6 . Propulsion 77 | 2 3 2 8 . . 1 1 2 9 . 2 2 . 1 1 . . . 2 3 3 . . . 1 . 1 8 7 . 4 12 2 Treads 72 | 2 3 2 8 . . 1 1 2 8 . 2 2 . 1 1 . . . . 3 3 . . . 1 . 1 8 7 . 4 12 . Leg 2 | . . . . . . . . . . . . . . . . . . . 2 . . . . . . . . . . . . . . Wheel . | . . . . . . . . . . . . . . . . . . . . . . . . . . . . . . . . . . Hover 3 | . . . . . . . . . 1 . . . . . . . . . . . . . . . . . . . . . . . 2 Flight . | . . . . . . . . . . . . . . . . . . . . . . . . . . . . . . . . . . Utility 185 | 2 5 1 2 . . . 1 4 1 . 8 2 . 6 1 5 1 . 3 4 3 2 5 10 4 2 17 15 10 7 13 45 6 Device 73 | 2 1 . . . . . . . . . 3 . . 3 . 3 1 . 2 . 1 1 5 2 . . 3 3 3 2 6 31 1 Storage 15 | . 2 . . . . . . . . . . . . . 1 . . . . . . . . 4 . . 1 . 2 . 1 1 3 Processor 11 | . . . 1 . . . . 2 . . 1 . . . . 1 . . . 1 . 1 . 1 . . . 2 . 1 . . . Hackware 30 | . . . . . . . . . . . . . . . . . . . . . 1 . . 1 2 1 7 6 2 1 3 4 2 Protection 56 | . 2 1 1 . . . 1 2 1 . 4 2 . 3 . 1 . . 1 3 1 . . 2 2 1 6 4 3 3 3 9 . Artifact . | . . . . . . . . . . . . . . . . . . . . . . . . . . . . . . . . . . Weapon 271 | 1 12 5 10 2 . 8 . 8 4 3 12 7 1 6 6 12 5 3 6 8 6 5 4 9 10 2 15 10 18 5 6 59 3 Energy Gun 38 | . . . . . . . . . 1 . 7 2 . . . . . . . 3 3 3 3 5 6 1 4 . . . . . . Energy Cannon 39 | . 2 . . . . . . . . . . . . . . . . . 1 1 . 2 . 4 . . 6 3 6 1 . 11 2 Ballistic Gun 96 | 1 8 5 7 2 . 6 . 4 3 1 . 3 1 5 3 6 3 2 3 2 . . . . . . . . 1 3 4 23 . Ballistic Cannon 5 | . . . . . . . . . . . . . . . . . . . . . . . . . . . . . 4 . . . 1 Launcher 42 | . . . 2 . . 2 . 3 . 2 1 . . 1 1 4 2 . 1 1 . . 1 . 4 . 1 1 4 . 1 10 . Special Weapon 36 | . 1 . . . . . . . . . . . . . . . . 1 . . 3 . . . . 1 4 6 3 1 1 15 . Impact Weapon 4 | . 1 . 1 . . . . 1 . . . . . . 1 . . . . . . . . . . . . . . . . . . Slashing Weapon 11 | . . . . . . . . . . . 4 2 . . 1 2 . . 1 1 . . . . . . . . . . . . . Piercing Weapon . | . . . . . . . . . . . . . . . . . . . . . . . . . . . . . . . . . . Special Melee Weapon . | . . . . . . . . . . . . . . . . . . . . . . . . . . . . . . . . . . Unidentified Prototypes 20 | . . . 1 . . . . . 2 . . . . . 2 . . . 2 1 . . . . . . . 1 . 1 . 7 3 Corrupted Parts 4 | . . 1 . . . . . . . . . . . . . . . . . . . . . . . . . . . . . 3 . System Corruption 29 | . . 2 . . . . . . . . . . . . . . . . . . . . . . . . . . . . . 27 . Parts Lost 63 | . . . 1 . . 1 . 4 . . . . . 3 . 1 . . . . . . . 1 2 . 11 2 5 . 1 28 3 Power 7 | . . . . . . . . . . . . . . 1 . . . . . . . . . . 1 . 1 . 1 . . 2 1 Propulsion 15 | . . . . . . 1 . 2 . . . . . 1 . . . . . . . . . . . . 1 1 1 . . 7 1 Utility 29 | . . . . . . . . 1 . . . . . 1 . 1 . . . . . . . 1 1 . 7 . 3 . 1 13 . Weapon 12 | . . . 1 . . . . 1 . . . . . . . . . . . . . . . . . . 2 1 . . . 6 1 Highest Loss Streak 11 | . . . 1 . . 1 . 4 . . . . . 3 . 1 . . . . . . . 1 1 . 6 1 2 . 1 11 2 To Critical Strikes . | . . . . . . . . . . . . . . . . . . . . . . . . . . . . . . . . . . Average Slot Usage (%) 88 | . 98 99 99 100 100 99 100 99 99 100 99 86 84 83 83 84 84 71 88 97 82 66 65 72 74 66 78 90 83 97 90 81 33 Engine 5 | . 13 14 6 11 11 11 9 9 9 9 7 7 7 7 7 7 7 7 7 6 3 . . . 1 5 5 5 2 . . . . Core 2 | . . . 4 . . . . . . . 6 . . 1 7 7 7 7 2 . . . . . . . 4 5 2 5 5 3 . Reactor 3 | . . . . . . . . . . . . 6 7 5 . . . . 4 6 9 13 13 13 6 5 . . 4 5 5 4 3 Treads 20 | . 27 27 32 33 33 32 36 36 35 36 30 17 15 15 15 15 15 15 10 12 12 13 13 13 13 11 11 17 20 21 12 16 3 Device 5 | . 3 . . . . . . . . . 6 6 . 1 7 7 7 7 7 6 7 6 6 6 6 5 4 8 11 14 10 11 2 Storage 8 | . 14 14 11 11 11 11 9 9 9 9 7 7 7 7 7 7 7 7 7 6 6 6 6 9 13 5 5 6 7 5 8 4 2 Processor 7 | . . . 10 11 11 11 9 10 18 18 15 15 15 15 15 15 15 15 15 17 12 6 6 8 12 5 . 3 . . . . . Hackware 6 | . . . . . . . . . . . . . . . . . . . . . 2 . . . . 5 19 27 18 26 26 21 6 Protection 8 | . 10 14 11 11 11 11 18 16 9 9 6 8 15 13 7 7 7 7 7 14 5 6 6 5 6 7 10 4 3 7 10 5 . Energy Gun 2 | . . . . . . . . . . . 13 7 . . . . . . . 3 12 12 10 12 12 9 6 . . . . . . Energy Cannon 1 | . 3 3 . . . . . . . . . . . . . . . . . . . . . . . . 3 5 4 . . 1 7 Ballistic Gun 9 | . 23 24 21 19 22 21 18 12 17 12 . 2 9 14 14 13 14 . 14 7 . . . . . . . . . 7 9 6 . Naked Turns 4 | . . . . . . . . . . . . . . . . . . . . . . . . . . . . . . . . 4 . Heaviest Build 145 | 11 54 54 57 57 57 57 60 60 66 69 77 93 89 91 79 82 79 79 101 108 129 133 131 133 109 118 130 110 145 105 121 135 45 Greatest Support 215 | 40 40 40 60 60 60 60 80 80 80 80 80 140 140 140 140 140 140 140 140 56 140 140 140 140 140 140 140 140 113 106 140 215 75 Greatest Overweight (x) 2 | . 1 2 . . . . . . 1 . . 1 . . . . . . 1 1 2 . . . . . . 1 1 . 1 . 1 Average Overweight (x) . | . . 1 . . . . . . . . . . . . . . . . . 1 . . . . . . . . . . . . . Largest Inventory Capacity 20 | 8 20 20 20 20 20 20 20 20 20 20 20 20 20 20 20 20 20 20 20 20 20 20 20 20 20 20 20 20 20 20 20 20 10 Average Capacity 19 | 8 18 20 20 20 20 20 20 20 20 20 20 20 20 20 20 20 20 20 20 20 20 20 20 20 20 20 20 20 20 20 20 19 8 Most Carried 20 | 8 20 20 20 20 20 20 19 20 20 20 20 20 20 20 20 20 20 20 20 20 20 20 20 20 20 20 20 20 20 20 20 20 10 Average Carried 18 | 6 16 19 19 19 17 19 18 18 19 20 19 19 20 19 19 19 20 19 19 19 19 19 20 19 19 19 17 19 18 19 19 18 6 Final Capacity 20 | 8 20 20 20 20 20 20 20 20 20 20 20 20 20 20 20 20 20 20 20 20 20 20 20 20 20 20 20 20 20 20 20 5 10 Final Carried 20 | 6 20 20 20 20 20 20 18 20 20 20 20 20 20 20 20 20 20 20 20 20 20 20 20 20 19 20 20 20 20 19 20 3 10 Class Distribution -------------------- 34% | Mutant 25% | Botlord-Mutant 19% | Scavenger-Mutant 16% | Bothacker-Mutant Dominant Class ---------------- Mutant | -10/Materials Mutant | -10/Mines Scavenger-Mutant | -9/Materials Mutant | -9/Mines Mutant | -9/Exiles Mutant | -8/Mines Scavenger-Mutant | -8/Materials Scavenger-Mutant | -8/Garrison Scavenger-Mutant | -8/Materials Mutant | -8/Garrison Mutant | -7/Factory Mutant | -7/Waste Mutant | -7/Factory Mutant | -7/Garrison Bothacker-Mutant | -7/Factory Bothacker-Mutant | -7/Lower Caves Bothacker-Mutant | -7/Lower Caves Bothacker-Mutant | -7/Data Miner Bothacker-Mutant | -6/Proximity Caves Bothacker-Mutant | -6/Factory Scavenger-Mutant | -6/Waste Scavenger-Mutant | -6/Factory Scavenger-Mutant | -6/Garrison Scavenger-Mutant | -6/Factory Mutant | -6/Garrison Bothacker-Mutant | -5/Factory Botlord-Mutant | -5/Garrison Botlord-Mutant | -4/Factory Botlord-Mutant | -4/Garrison Botlord-Mutant | -4/Factory Botlord-Mutant | -4/Garrison Botlord-Mutant | -3/Research Hacker-Mutant | -3/Testing Resources | -11 -10 -10 -9 -9 -9 -8 -8 -8 -8 -8 -7 -7 -7 -7 -7 -7 -7 -7 -6 -6 -6 -6 -6 -6 -6 -5 -5 -4 -4 -4 -4 -3 -3 ----------- Run | Scr Mat Min Mat Min Exi Min Mat Gar Mat Gar Fac Was Fac Gar Fac Low Low Dat Pro Fac Was Fac Gar Fac Gar Fac Gar Fac Gar Fac Gar Res Tes Matter Collected 13213 | 284 634 82 551 143 23 211 . 162 499 110 279 161 101 327 . 590 263 . 261 542 227 79 195 188 539 55 584 262 1130 . 1074 3657 . Remotely 2412 | 34 . . . . . . . . . . 70 . . . . 74 . . . . . . 162 . . . 147 . 106 . 515 1304 . Salvage Created 19234 | 187 916 183 1335 148 15 109 . 287 720 149 926 311 313 368 130 425 372 . 246 667 2075 331 391 349 799 70 749 714 742 47 549 4611 . Parts 948 | 19 48 11 83 18 1 14 . 20 45 8 42 6 12 16 6 17 15 . 17 34 58 21 21 22 56 3 30 36 32 3 25 209 . Haulers Intercepted 12 | . 2 . 3 . . . . . 3 . 1 . 1 . . . . . . 1 . . . . . . . . . . . 1 . Recyclers Shooed 18 | . 3 . 5 . . . . . . . . . . . . . . . . . . 1 . . . . . . . . . 9 . Parts Field Recycled . | . . . . . . . . . . . . . . . . . . . . . . . . . . . . . . . . . . Retrieved Matter . | . . . . . . . . . . . . . . . . . . . . . . . . . . . . . . . . . . Parts Self-Destructed 32 | . . . . . . . . . . . . . . . . 10 15 . 7 . . . . . . . . . . . . . . Prevented . | . . . . . . . . . . . . . . . . . . . . . . . . . . . . . . . . . . Kills | -11 -10 -10 -9 -9 -9 -8 -8 -8 -8 -8 -7 -7 -7 -7 -7 -7 -7 -7 -6 -6 -6 -6 -6 -6 -6 -5 -5 -4 -4 -4 -4 -3 -3 ------- Run | Scr Mat Min Mat Min Exi Min Mat Gar Mat Gar Fac Was Fac Gar Fac Low Low Dat Pro Fac Was Fac Gar Fac Gar Fac Gar Fac Gar Fac Gar Res Tes Combat Hostiles Destroyed 321 | . 11 5 18 8 . 9 . 16 13 3 14 . 5 11 . 11 11 . 3 6 6 3 16 6 22 1 12 13 18 . 10 70 . Guns 163 | . 10 3 18 3 . 2 . 4 13 2 12 . 5 5 . 5 4 . . 4 6 1 2 6 9 1 6 . . . 5 37 . Cannons 35 | . 1 2 . . . . . . . . . . . . . . . . . . . . . . . . 4 12 9 . . 7 . AOE 109 | . . . . 5 . 7 . 12 . 1 . . . 6 . 6 7 . 3 2 . . 14 . 11 . 2 1 6 . 5 21 . Classes Destroyed 26 | 2 5 1 2 . 1 1 . 1 1 1 1 . 1 . . 2 1 . . . 1 . . . 1 . 1 . . . . 3 . Worker 16 | . 4 . . 2 . . . . . . 1 . 1 . . . . . . . . 2 . . . . . . . . . 6 . Builder 20 | . . . . . . . . . 1 . . . . . . . . . . . . . . . . . . . . . . 19 . Tunneler 7 | 5 . . . . . . . . . . . . . . . . . . . . . . . . . . . . . . . 2 . Hauler 12 | . 2 . 3 . . . . . 3 . 1 . 1 . . . . . . 1 . . . . . . . . . . . 1 . Recycler 21 | 1 5 . 5 . . . . . . . 2 . 1 . 1 . . . . 1 . . . . . . . . . . . 5 . Carrier 1 | . . . . . . . . . . . . . . . . . . . . . . . . . . . . . . . . 1 . Operator 3 | . . . 1 . . . . . 1 . . . . . 1 . . . . . . . . . . . . . . . . . . Watcher 19 | . 3 . 5 . . . . . 1 . . . . . 1 . . . . 2 . 2 . 1 . . . . . 1 . 3 . Swarmer 95 | . 3 2 5 3 . 7 . 4 5 . 4 . . 4 . 4 . . 3 . . . 10 3 10 . . 2 3 . 4 19 . Cutter 7 | . . . . . . . . . . . . . . . . . . . . . . . . . 4 . . . 3 . . . . Saboteur 2 | . . . . . . . . . . . . . . . . . . . . . . . . . . . . . . . . 2 . Grunt 119 | . 8 2 7 3 . . . 9 6 . 2 . . 3 . 5 9 . . 3 . 2 5 . 3 1 6 4 3 . 4 34 . Brawler 4 | . . . . . . . . . . . . . . . . . 1 . . . . . . . . . 1 . 1 . 1 . . Duelist 13 | . . . 1 2 . . . . . . . . . 1 . 2 . . . . . . . . . . 1 . 5 . . 1 . Sentry 38 | . . 1 5 . . . . 2 2 1 5 . 1 3 . . . . . 1 . 1 1 1 3 . 1 2 2 . . 6 . Demolisher 3 | . . . . . . . . 1 . . . . 2 . . . . . . . . . . . . . . . . . . . . Specialist 3 | . . . . . . . . . . 1 . . . . . . . . . . . . . . . . . . . . . 2 . Hunter 14 | . . . . . . 2 . . . 1 1 . . . . . 1 . . . . . . 2 2 . 1 1 1 . 1 1 . Programmer 15 | . . . . . . . . . . . 2 . . . . . . . . 2 . . . . . . 1 4 . . . 6 . Heavy 1 | . . . . . . . . . . . . . . . . . . . . . . . . . . . . . . . . 1 . Behemoth 3 | . . . . . . . . . . . . . . . . . . . . . . . . . . . 1 . . . 1 1 . Compactor 6 | . . . . . . . . . . . . . . . . . . . . . 6 . . . . . . . . . . . . Enhanced Grunt 1 | . . . . . . . . . . . . . . . . . . . 1 . . . . . . . . . . . . . . Zionite 1 | . . . . . 1 . . . . . . . . . . . . . . . . . . . . . . . . . . . . Samaritan 2 | . . . . . . . . . . . . . . . . 2 . . . . . . . . . . . . . . . . . Assembled 2 | . . . . . . . . . . . . . 2 . . . . . . . . . . . . . . . . . . . . Martyr 1 | . . . . . . . . . . . . 1 . . . . . . . . . . . . . . . . . . . . . Mutant 1 | . . . . . . . . . . . . . . . . 1 . . . . . . . . . . . . . . . . . Best Kill Streak 22 | 3 4 2 8 5 . 5 . 9 5 1 4 . 5 7 2 4 4 . 3 4 2 2 15 3 15 1 3 3 3 1 5 22 . Combat Bots Only 15 | . 2 2 6 3 . 5 . 9 3 1 3 . 4 7 . 4 4 . 3 3 2 1 15 3 15 1 3 3 3 . 5 13 . Max Kills in Single Turn 12 | 1 2 1 2 3 1 3 . 5 2 1 2 1 2 3 2 3 2 . 3 1 1 2 4 1 3 1 1 1 2 1 4 12 . Gunslinging 1 | . . . 1 1 . . . . . . . . . . . . . . . . . . . . 1 . . . . . . 1 . Exploded 5 | . . . . 3 . 3 . 5 . 1 . . . 3 . 3 2 . 3 1 . . 4 . 3 . 1 1 2 . 4 3 . Melee . | . . . . . . . . . . . . . . . . . . . . . . . . . . . . . . . . . . Uniques/NPCs Destroyed . | . . . . . . . . . . . . . . . . . . . . . . . . . . . . . . . . . . Combat | -11 -10 -10 -9 -9 -9 -8 -8 -8 -8 -8 -7 -7 -7 -7 -7 -7 -7 -7 -6 -6 -6 -6 -6 -6 -6 -5 -5 -4 -4 -4 -4 -3 -3 -------- Run | Scr Mat Min Mat Min Exi Min Mat Gar Mat Gar Fac Was Fac Gar Fac Low Low Dat Pro Fac Was Fac Gar Fac Gar Fac Gar Fac Gar Fac Gar Res Tes Damage Taken 27261 | . 403 276 584 155 . 280 . 714 297 178 1018 . 696 820 . 854 311 . 21 703 . 505 361 935 1229 131 2784 1184 1591 . 1069 9111 1051 Core 2661 | . 33 56 108 59 . . . 32 47 30 135 . 21 92 . . 56 . 10 89 . 5 18 28 55 18 140 158 44 . 119 1071 237 Absorbed by Shields 3223 | . . . . . . . . . . . . . . 57 . . 56 . 8 . . . . . . . . . . . 474 2628 . Reduced by Siege Mode 465 | . . . . . . . . . . . . . 26 26 . 21 . . . . . 5 . . . . 185 10 . . . 192 . Redirected to Shielding 29 | . . . . . . . . . . . . . . . . . . . . 26 . . . . . . 3 . . . . . . Regen/Repaired (Parts) 349 | . 180 . 37 . . . . . 47 . 85 . . . . . . . . . . . . . . . . . . . . . . Core Remaining (%) 73 | 100 . 64 . . . 58 . . . 80 . . . . . . . . 55 . . . . . 77 . 84 . . . 72 . . Volleys Fired 1294 | 17 62 16 62 10 2 16 . 24 40 13 52 2 12 28 2 35 21 1 12 28 81 36 16 43 43 9 67 90 110 5 45 291 3 Largest 2 | 2 2 2 2 2 2 2 . 2 2 2 2 2 2 2 2 2 2 1 2 2 2 2 2 2 2 2 2 2 2 2 2 2 1 Hottest 184 | 40 112 112 46 46 46 46 . 60 46 46 110 110 66 66 66 66 66 5 66 113 160 160 160 160 160 160 170 180 114 90 80 184 94 Shots Fired 2066 | 34 123 28 124 16 4 27 . 41 80 22 99 5 24 45 5 67 33 1 24 50 153 42 21 71 70 13 108 101 118 7 70 436 4 Gun 1527 | 34 116 18 124 12 4 22 . 34 80 20 98 5 24 39 5 62 24 . 23 44 147 36 13 59 62 8 63 4 . 4 54 289 . Cannon 338 | . 6 10 . . . . . . . . . . . . . . . . . 3 . 6 . 12 . . 28 70 103 1 . 95 4 Launcher 90 | . . . . 4 . 5 . 7 . 2 1 . . 6 . 5 9 . 1 3 . . 8 . 8 . 6 . 7 . 3 15 . Special 111 | . 1 . . . . . . . . . . . . . . . . 1 . . 6 . . . . 5 11 27 8 2 13 37 . Kinetic 1032 | 34 116 18 124 12 4 22 . 34 80 20 . 1 24 39 5 62 24 . 23 30 . . . . . . . . 12 4 54 289 1 Thermal 796 | . 1 . . . . . . . . . 98 4 . . . . . . . 17 147 42 13 71 62 8 91 74 91 1 . 76 . Explosive 85 | . . . . 4 . 5 . 7 . 2 1 . . 6 . 5 9 . 1 3 . . 8 . 8 . 6 . 7 . 3 10 . Electromagnetic 43 | . 6 10 . . . . . . . . . . . . . . . . . . . . . . . . . . . . . 24 3 Robot Hit Streak 35 | 7 11 11 11 7 10 11 . 27 23 8 19 5 9 29 3 19 5 2 13 9 35 12 7 9 13 14 23 23 12 9 16 22 2 Robot Miss Streak 9 | 3 9 2 2 1 . 1 . 1 2 1 3 . 2 1 1 2 2 . 2 1 2 3 1 3 2 2 2 3 4 . 4 6 1 Penetration Max 2 | . . . . . . . . . . . . . . . . . . . . . . . . . . . . . . . . 2 . Secondary Targets 20 | . 3 1 2 1 . . . 1 1 . . . . 1 . . . . . . 1 . . 1 4 . . . . . . 4 . Max Gunslinging Chain 1 | . 1 1 1 1 . . . 1 1 . . . . 1 . . . . . . 1 . . 1 1 . . . . . . 1 . Capacitor 140 | . . . . . . . . . . . . . . . . . . . . . . . . . . . . 48 91 1 . . . Shots Hit Robots 1432 | 22 83 22 88 12 3 16 . 33 66 14 67 9 18 34 3 54 22 1 16 34 137 27 13 38 35 9 80 64 69 6 44 292 1 Core Hits 775 | 11 50 8 42 13 1 17 . 36 31 7 32 4 10 19 4 24 18 . 11 18 17 8 29 11 38 2 29 21 27 2 26 209 . Critical Kills 40 | . 1 . . . . . . . 1 . . . . . . . . . . . 3 . . 3 3 . . . 2 . 3 24 . Critical Parts Destroyed 52 | 1 . . 2 . . . . . . . . . . 2 . 2 . . . 2 1 . . 1 4 . 1 . . 1 2 33 . Critical Strikes 106 | 1 2 . 2 . . . . . 1 . 2 1 . 2 . 2 . . . 2 12 . . 4 7 . 1 . 3 1 6 57 . Burn 3 | . . . . . . . . . . . 2 1 . . . . . . . . . . . . . . . . . . . . . Meltdown 2 | . . . . . . . . . . . . . . . . . . . . . . . . . . . . . 2 . . . . Destroy 99 | 1 1 . 2 . . . . . 1 . . . . 2 . 2 . . . 2 12 . . 4 7 . 1 . . 1 6 57 . Blast 1 | . . . . . . . . . . . . . . . . . . . . . . . . . . . . . 1 . . . . Corrupt 1 | . 1 . . . . . . . . . . . . . . . . . . . . . . . . . . . . . . . . Melee Attacks 46 | . 1 . 4 . . . . 15 . . 5 5 3 . 1 10 . . 1 1 . . . . . . . . . . . . . Impact 20 | . 1 . 4 . . . . 15 . . . . . . . . . . . . . . . . . . . . . . . . . Slashing 26 | . . . . . . . . . . . 5 5 3 . 1 10 . . 1 1 . . . . . . . . . . . . . Piercing . | . . . . . . . . . . . . . . . . . . . . . . . . . . . . . . . . . . Sneak Attacks 9 | . . . . . . . . . . . . 4 2 . . 3 . . . . . . . . . . . . . . . . . Combat Hostiles . | . . . . . . . . . . . . . . . . . . . . . . . . . . . . . . . . . . Follow-up Attacks . | . . . . . . . . . . . . . . . . . . . . . . . . . . . . . . . . . . Damage Inflicted 48401 | 186 1213 285 1502 618 41 508 . 1840 1080 269 1428 434 545 1215 94 2027 1594 . 580 1126 3350 744 1711 934 2414 145 2383 1625 3234 104 1567 13532 73 Guns 24621 | 186 1109 126 1452 170 41 181 . 441 1062 169 1428 84 344 689 94 1085 336 . 316 729 3350 658 238 934 1054 145 1224 84 . 104 789 5999 . Cannons 6010 | . 100 142 . . . . . . . . . . . . . . . . . . . 38 . . . . 658 1428 2009 . . 1589 46 Explosions 16736 | . . . . 448 . 317 . 1399 . 100 . . . 526 . 730 1258 . 264 397 . . 1473 . 1360 . 501 113 1225 . 778 5847 . Melee 733 | . . . . . . . . . . . . 350 171 . . 212 . . . . . . . . . . . . . . . . . Ramming 301 | . 4 17 50 . . 10 . . 18 . . . 30 . . . . . . . . 48 . . . . . . . . . 97 27 Kinetic 15485 | 186 1109 126 1452 170 41 181 . 441 1062 169 . 22 344 689 94 1085 336 . 316 443 . . . . . . . . 327 104 789 5999 . Thermal 14673 | . . . . . . . . . . . 1428 62 . . . . . . . 286 3350 696 238 934 1054 145 1882 1625 1783 . . 1190 . Explosive 15672 | . . . . 448 . 317 . 1399 . 100 . . . 526 . 730 1258 . 264 397 . . 1473 . 1360 . 501 . 1124 . 778 4997 . Electromagnetic 1537 | . 100 142 . . . . . . . . . . . . . . . . . . . . . . . . . . . . . 1249 46 Impact . | . . . . . . . . . . . . . . . . . . . . . . . . . . . . . . . . . . Slashing 733 | . . . . . . . . . . . . 350 171 . . 212 . . . . . . . . . . . . . . . . . Piercing . | . . . . . . . . . . . . . . . . . . . . . . . . . . . . . . . . . . Highest Corruption 48 | . . 2 . . . . . . . . 2 2 2 2 2 2 2 2 2 2 23 23 23 23 23 . 12 3 8 8 8 41 48 Average Corruption 11 | . . 2 . . . . . . . . 2 2 2 2 2 2 2 2 2 1 15 23 23 23 23 . 11 1 7 8 8 18 41 Corruption Purged 8 | . . . . . . . . . . . . . . . . . . . . . . . . . . . . . . . . 8 . Corruption Blocked 30 | . . . . . . . . . . . . . . . . . . . . . . . . . . . . . . . . 15 15 Effects 532 | . . 1 . . . . . . . . 1 10 3 10 7 17 5 1 6 2 22 30 13 43 56 . 40 11 48 12 30 142 22 Message Errors 100 | . . . . . . . . . . . 1 2 . 3 2 2 1 . 2 2 4 8 3 11 7 . 5 2 7 3 10 23 2 Matter Fused 123 | . . . . . . . . . . . . 2 1 1 2 7 1 1 2 . 5 4 1 10 22 . 9 2 12 4 5 28 4 Heat Flow Errors 62 | . . . . . . . . . . . . 1 . 2 . 3 1 . . . 1 3 1 3 13 . 7 1 12 1 2 10 1 Energy Discharges 57 | . . . . . . . . . . . . 1 1 1 . 2 . . . . 4 1 2 . 4 . 5 3 7 3 4 17 2 Parts Rejected 9 | . . . . . . . . . . . . . . . . . . . . . . 1 1 3 . . . . . . 1 3 . Data Loss (minor) 67 | . . . . . . . . . . . . 2 1 2 1 . 2 . 1 . 2 5 2 4 5 . 7 1 4 1 5 19 3 Data Loss (major) 24 | . . . . . . . . . . . . . . . 1 . . . . . 1 2 . 5 1 . . 1 2 . 1 7 3 Misfires 25 | . . . . . . . . . . . . 1 . . 1 2 . . 1 . 1 2 . 2 . . 3 . 3 . 2 6 1 Alerts 12 | . . 1 . . . . . . . . . 1 . . . 1 . . . . . . 1 . 1 . 1 . . . . 4 2 Misdirections 10 | . . . . . . . . . . . . . . . . . . . . . . . 1 1 . . . . . . . 4 4 Weapon Failures 43 | . . . . . . . . . . . . . . 1 . . . . . . 4 4 1 4 3 . 3 1 1 . . 21 . Overload Shots . | . . . . . . . . . . . . . . . . . . . . . . . . . . . . . . . . . . Overflow Damage 935 | . . . . . . 4 . 3 . . . 73 . 28 . 79 66 . . . . 8 52 . 82 . 47 17 95 . . 375 6 Projectiles 152 | . . . . . . . . . . . . . . . . . . . . . . 8 . . . . 13 17 70 . . 38 6 Explosions 644 | . . . . . . 4 . 3 . . . . . 28 . 13 66 . . . . . 52 . 82 . 34 . 25 . . 337 . Melee 139 | . . . . . . . . . . . . 73 . . . 66 . . . . . . . . . . . . . . . . . Knockbacks 7 | . . . . . . . . . . . . . . . . . . . . . . . . . . . . . 6 . . . 1 Impact 1 | . . . . . . . . . . . . . . . . . . . . . . . . . . . . . . . . . 1 Kinetic 6 | . . . . . . . . . . . . . . . . . . . . . . . . . . . . . 6 . . . . Secondary . | . . . . . . . . . . . . . . . . . . . . . . . . . . . . . . . . . . Self-Inflicted Damage 971 | . . . . 49 . 13 . 20 . 33 . . . . . 101 76 . . . . . . . 101 . . 69 32 . . 464 13 Shots 24 | . . . . 1 . 1 . 1 . 1 . . . . . 3 3 . . . . . . . 3 . . 1 1 . . 9 . Rammed 33 | . 1 6 5 . . 3 . . 2 . . . 1 . 1 . . . . . . 6 . . . . . . . . . 5 3 Targets Rammed 35 | . 1 6 6 . . 3 . . 2 . . . 1 . 1 . . . . . . 6 . . . . . . . . . 6 3 Kicked . | . . . . . . . . . . . . . . . . . . . . . . . . . . . . . . . . . . Crushed 2 | . . . 1 . . . . . . . . . . . . . . . . . . . . . . . . . . . . 1 . Highest Temperature 414 | . 115 130 33 . . . . 39 41 7 207 230 276 294 404 160 386 . 182 48 332 375 192 315 344 183 364 261 414 96 259 379 265 Average Temperature 90 | . 20 55 11 . . . . 17 16 3 47 89 130 117 200 81 110 . 105 18 120 79 77 83 100 98 105 68 120 46 133 70 84 Received Heat Transfer 4837 | . 183 99 198 24 . . . 171 135 18 249 . 41 246 . 174 168 . . 165 . 240 81 12 285 63 498 108 114 . 109 1456 . Effects 18 | . . . . . . . . . . . . . . 7 . . . . . . 3 . . 1 . . 1 . 5 . . 1 . Shutdowns 1 | . . . . . . . . . . . . . . . . . . . . . . . . . . . . . . . . 1 . Energy Bleed 4 | . . . . . . . . . . . . . . 1 . . . . . . . . . 1 . . . . 2 . . . . Interference 11 | . . . . . . . . . . . . . . 6 . . . . . . 3 . . . . . . . 2 . . . . Matter Decay 1 | . . . . . . . . . . . . . . . . . . . . . . . . . . . 1 . . . . . . Short Circuit 1 | . . . . . . . . . . . . . . . . . . . . . . . . . . . . . 1 . . . . Siege Activations 13 | . . . . . . . . . . . . . 2 1 . 1 . . . . . 1 . . . 1 2 1 . . 1 3 . Total Turns 373 | . . . . . . . . . . . . . 19 19 . 18 . . . . . 16 . . . 15 91 19 . . 47 129 . Longest Duration 80 | . . . . . . . . . . . . . 11 19 . 18 . . . . . 16 . . . 15 54 19 . . 47 80 . Robots Corrupted 5 | . . . . . . . . . . . . . . . . . . . . . . . . . . . . . . . . 5 . Combat Hostiles 5 | . . . . . . . . . . . . . . . . . . . . . . . . . . . . . . . . 5 . Parts Fried 8 | . . . . . . . . . . . . . . . . . . . . . . . . . . . . . . . . 8 . Impact Corruptions . | . . . . . . . . . . . . . . . . . . . . . . . . . . . . . . . . . . Robots Melted 9 | . . . . . . . . . . . 2 . . . . . . . . . . 2 . . 2 . . . 3 . . . . Combat Hostiles 9 | . . . . . . . . . . . 2 . . . . . . . . . . 2 . . 2 . . . 3 . . . . Parts Melted 63 | . . . . . . . . . . . 10 . . . . . . . . 4 1 2 1 12 15 . 8 3 6 . . 1 . Heat Transferred 19121 | . . . . . . . . . . . 2738 185 . . . . . . . 407 5180 999 370 1406 1490 222 2263 1561 2200 . . 100 . Parts Sabotaged . | . . . . . . . . . . . . . . . . . . . . . . . . . . . . . . . . . . Parts Stolen . | . . . . . . . . . . . . . . . . . . . . . . . . . . . . . . . . . . Parts Stripped . | . . . . . . . . . . . . . . . . . . . . . . . . . . . . . . . . . . Power Chain Reactions 3 | . . . . . . . . . . . . . . . . . . . . . . . . . . . . . 1 . . 2 . Missiles Intercepted . | . . . . . . . . . . . . . . . . . . . . . . . . . . . . . . . . . . Alert | -11 -10 -10 -9 -9 -9 -8 -8 -8 -8 -8 -7 -7 -7 -7 -7 -7 -7 -7 -6 -6 -6 -6 -6 -6 -6 -5 -5 -4 -4 -4 -4 -3 -3 ------- Run | Scr Mat Min Mat Min Exi Min Mat Gar Mat Gar Fac Was Fac Gar Fac Low Low Dat Pro Fac Was Fac Gar Fac Gar Fac Gar Fac Gar Fac Gar Res Tes Peak Influence 2523 | 30 250 188 398 418 . 230 . 587 401 222 304 100 179 350 281 . . . . 92 32 148 521 491 754 395 349 300 863 480 601 2523 1428 Initial 1396 | . 19 58 . 152 . . . 6 286 136 116 100 . 32 183 . . . . 6 32 . 103 273 113 395 123 182 152 452 336 337 1396 Average 334 | 18 99 52 219 338 . 104 . 393 239 184 171 70 81 250 180 . . . . 39 23 30 350 267 590 190 204 95 610 465 468 899 1414 Maximum Alert Level 5 | . 1 . 1 2 . 1 . 2 2 1 1 . . 1 1 . . . . . . . 2 2 3 1 1 1 3 2 2 5 4 Low Security (%) 46 | 100 97 100 29 . . 76 100 9 34 61 62 100 100 12 47 . . . . 100 100 100 37 40 8 74 33 82 2 . . . . Level 1 22 | . 2 . 70 55 . 23 . 22 64 38 37 . . 87 52 . . . . . . . 9 52 1 25 66 17 9 . 11 17 . Level 2 21 | . . . . 44 . . . 67 1 . . . . . . . . . . . . . 53 7 81 . . . 54 100 88 37 . Level 3 4 | . . . . . . . . . . . . . . . . . . . . . . . . . 8 . . . 34 . . 16 . Level 4 2 | . . . . . . . . . . . . . . . . . . . . . . . . . . . . . . . . 7 100 Level 5 1 | . . . . . . . . . . . . . . . . . . . . . . . . . . . . . . . . 12 . High Security 1 | . . . . . . . . . . . . . . . . . . . . . . . . . . . . . . . . 7 . Max Security . | . . . . . . . . . . . . . . . . . . . . . . . . . . . . . . . . . . Squads Dispatched 66 | . 2 . . . . . . . 2 . 5 . 2 . 1 . . . . 3 . 3 . 1 . 2 . 9 . 2 . 31 3 Investigation 17 | . 1 . . . . . . . 1 . 1 . 2 . . . . . . . . 1 . . . 1 . 2 . 1 . 7 . Extermination 9 | . . . . . . . . . . . 2 . . . 1 . . . . 2 . . . . . . . . . 1 . 3 . Reinforcement 21 | . 1 . . . . . . . 1 . 2 . . . . . . . . 1 . 2 . 1 . 1 . 3 . . . 7 2 Assault 13 | . . . . . . . . . . . . . . . . . . . . . . . . . . . . 1 . . . 11 1 Garrison 6 | . . . . . . . . . . . . . . . . . . . . . . . . . . . . 3 . . . 3 . Intercept . | . . . . . . . . . . . . . . . . . . . . . . . . . . . . . . . . . . Searches Triggered 2 | . . . . . . . . . . . . . . . . . . . . . . . . . . . . . . . . 2 . Data Miner Redirects 11 | . . . . . . . . . . . . . . . . . . . . . . . . . . . . 2 . . . 9 . Construction Impeded 4 | . . . . . . . . . . . . . . . . . . . . . . . . . . . . . . . . 4 . Haulers Reinforced . | . . . . . . . . . . . . . . . . . . . . . . . . . . . . . . . . . . Active Scanning Responses 5 | . . . . . . . . . . . . . . . . . . . . . . . . . . . . . . . . 5 . Cargo Convoy Interrupts 1 | . . . . . . . . . . . . . . . . . . . . . . . . . . . . . . . . 1 . Alert ID Control Effect 37 | . . . . . . . . . . . . . . . . . . . . . . . . . . . 5 9 5 . 1 17 . Stealth | -11 -10 -10 -9 -9 -9 -8 -8 -8 -8 -8 -7 -7 -7 -7 -7 -7 -7 -7 -6 -6 -6 -6 -6 -6 -6 -5 -5 -4 -4 -4 -4 -3 -3 --------- Run | Scr Mat Min Mat Min Exi Min Mat Gar Mat Gar Fac Was Fac Gar Fac Low Low Dat Pro Fac Was Fac Gar Fac Gar Fac Gar Fac Gar Fac Gar Res Tes Distress Signals 17 | . . . 3 . . . . . 3 . . . 1 . . . . . . . . 1 . . . . . 1 . . . 7 1 Communications Jammed . | . . . . . . . . . . . . . . . . . . . . . . . . . . . . . . . . . . Distress Signals . | . . . . . . . . . . . . . . . . . . . . . . . . . . . . . . . . . . Times Spotted 506 | . 20 12 28 5 . 10 . 13 22 3 21 . 16 11 3 12 8 . 3 9 6 11 15 11 22 3 27 32 24 2 16 134 7 Peak Tracking Total 16 | . 3 3 6 3 2 4 . 10 4 2 5 . 4 4 1 4 4 . 3 4 4 5 5 3 6 3 8 5 5 1 9 16 6 Tactical Retreats 27 | . 1 2 1 . . . . 1 1 1 2 . 3 1 . 1 . . . . . 2 . . . 1 . 1 1 . . 7 1 Traps | -11 -10 -10 -9 -9 -9 -8 -8 -8 -8 -8 -7 -7 -7 -7 -7 -7 -7 -7 -6 -6 -6 -6 -6 -6 -6 -5 -5 -4 -4 -4 -4 -3 -3 ------- Run | Scr Mat Min Mat Min Exi Min Mat Gar Mat Gar Fac Was Fac Gar Fac Low Low Dat Pro Fac Was Fac Gar Fac Gar Fac Gar Fac Gar Fac Gar Res Tes Traps Triggered 27 | . 1 . . . . . . 2 . . 2 . 1 1 . . . . . 4 . 2 . 2 . . 1 3 6 . . 2 . Indirectly . | . . . . . . . . . . . . . . . . . . . . . . . . . . . . . . . . . . Trap Hack Attempts . | . . . . . . . . . . . . . . . . . . . . . . . . . . . . . . . . . . Triggered . | . . . . . . . . . . . . . . . . . . . . . . . . . . . . . . . . . . Disarmed . | . . . . . . . . . . . . . . . . . . . . . . . . . . . . . . . . . . Reprogrammed . | . . . . . . . . . . . . . . . . . . . . . . . . . . . . . . . . . . Reused . | . . . . . . . . . . . . . . . . . . . . . . . . . . . . . . . . . . Traps Extracted . | . . . . . . . . . . . . . . . . . . . . . . . . . . . . . . . . . . Installed . | . . . . . . . . . . . . . . . . . . . . . . . . . . . . . . . . . . Triggered 3 | . . . . . . . . . . . . . . . . . . . . . . . . . . . . . . . . 3 . Exploded 1 | . . . . . 1 . . . . . . . . . . . . . . . . . . . . . . . . . . . . Machines | -11 -10 -10 -9 -9 -9 -8 -8 -8 -8 -8 -7 -7 -7 -7 -7 -7 -7 -7 -6 -6 -6 -6 -6 -6 -6 -5 -5 -4 -4 -4 -4 -3 -3 ---------- Run | Scr Mat Min Mat Min Exi Min Mat Gar Mat Gar Fac Was Fac Gar Fac Low Low Dat Pro Fac Was Fac Gar Fac Gar Fac Gar Fac Gar Fac Gar Res Tes Machines Disabled 49 | . . . . . . . . 3 . . . . . 2 1 . . . . . . 1 2 2 3 . 4 6 11 . 5 8 1 Max in Single Turn 4 | . . . . . . . . 1 . . . . . 1 1 . . . . . . 1 1 1 1 . 1 4 1 . 1 1 1 Garrison Access 4 | . . . . . . . . . . . . . . . . . . . . . . . . . . . . 2 . . . 2 . Garrison Relay 15 | . . . . . . . . 3 . . . . . 1 . . . . . . . . . . 2 . 2 . 4 . 3 . . Machines Sabotaged . | . . . . . . . . . . . . . . . . . . . . . . . . . . . . . . . . . . Garrisons Compromised 1 | . . . . . . . . . . . . . . . . . . . . . . . . . . . . . . . . 1 . Overloaded Fab Kills . | . . . . . . . . . . . . . . . . . . . . . . . . . . . . . . . . . . Hacking | -11 -10 -10 -9 -9 -9 -8 -8 -8 -8 -8 -7 -7 -7 -7 -7 -7 -7 -7 -6 -6 -6 -6 -6 -6 -6 -5 -5 -4 -4 -4 -4 -3 -3 --------- Run | Scr Mat Min Mat Min Exi Min Mat Gar Mat Gar Fac Was Fac Gar Fac Low Low Dat Pro Fac Was Fac Gar Fac Gar Fac Gar Fac Gar Fac Gar Res Tes Machines Accessed 71 | . 8 . 7 . 2 1 1 . 5 . 5 . 3 . 4 . . 4 . 3 . 3 . 3 . 1 . 4 . 4 . 11 2 Terminals 38 | . 6 . 6 . . 1 . . 2 . 3 . 1 . 3 . . . . 1 . 1 . 1 . . . 2 . 2 . 8 1 Fabricators 8 | . . . . . . . . . . . 1 . . . 1 . . . . 1 . 1 . 1 . . . . . 1 . 1 1 Repair Stations 4 | . 1 . 1 . . . . . 1 . 1 . . . . . . . . . . . . . . . . . . . . . . Recycling Units 2 | . 1 . . . . . . . 1 . . . . . . . . . . . . . . . . . . . . . . . . Scanalyzers 2 | . . . . . . . . . . . . . 1 . . . . . . 1 . . . . . . . . . . . . . Garrison Access 11 | . . . . . . . 1 . 1 . . . 1 . . . . . . . . 1 . 1 . 1 . 2 . 1 . 2 . Total Hacks 198 | . 38 . 18 . 2 5 2 . 10 . 13 . 7 . 7 . . 31 . 6 . 7 . 8 . 3 . 9 . 8 . 22 2 Successful 118 | . 21 . 9 . 2 3 2 . 9 . 5 . 3 . 2 . . 31 . 2 . 5 . 5 . 3 . 5 . 2 . 9 . Failed 79 | . 16 . 9 . . 2 . . 1 . 8 . 4 . 5 . . . . 4 . 2 . 3 . . . 4 . 6 . 13 2 Catastrophic 18 | . 2 . 2 . . 1 . . . . 3 . . . 2 . . . . . . 1 . . . . . 1 . 1 . 3 2 Database Lockouts 1 | . 1 . . . . . . . . . . . . . . . . . . . . . . . . . . . . . . . . Manual 45 | . 9 . 4 . 1 5 . . 6 . 2 . . . 3 . . . . 1 . 2 . 1 . 1 . 5 . 1 . 3 1 Terminals 94 | . 24 . 16 . . 5 . . 5 . 4 . 2 . 6 . . . . 1 . 2 . 3 . . . 4 . 4 . 17 1 Fabricators 20 | . . . . . . . . . . . 6 . . . 1 . . . . 3 . 2 . 3 . . . . . 1 . 3 1 Repair Stations 20 | . 13 . 2 . . . . . 2 . 3 . . . . . . . . . . . . . . . . . . . . . . Recycling Units 2 | . 1 . . . . . . . 1 . . . . . . . . . . . . . . . . . . . . . . . . Scanalyzers 5 | . . . . . . . . . . . . . 3 . . . . . . 2 . . . . . . . . . . . . . Garrison Access 24 | . . . . . . . 2 . 2 . . . 2 . . . . . . . . 3 . 2 . 3 . 5 . 3 . 2 . Terminal Hacks 69 | . 10 . 7 . 2 3 . . 4 . 2 . . . 2 . . 31 . . . 1 . 2 . . . . . . . 5 . Record 12 | . . . . . 1 . . . . . . . . . . . . 11 . . . . . . . . . . . . . . . Part Schematic 11 | . . . . . . . . . . . . . . . 1 . . 10 . . . . . . . . . . . . . . . Robot Schematic 7 | . . . . . . . . . . . . . . . . . . 7 . . . . . . . . . . . . . . . Robot Analysis 9 | . 3 . 2 . . 3 . . 1 . . . . . . . . . . . . . . . . . . . . . . . . Prototype ID Bank 5 | . 1 . 1 . . . . . . . . . . . . . . 3 . . . . . . . . . . . . . . . Branch Access Points 4 | . . . 1 . . . . . . . . . . . 1 . . . . . . . . 1 . . . . . . . 1 . Terminal Index 1 | . . . . . . . . . . . . . . . . . . . . . . . . . . . . . . . . 1 . Unreport Threat 3 | . . . . . . . . . 2 . . . . . . . . . . . . . . 1 . . . . . . . . . Locate Traps 7 | . 2 . 2 . . . . . . . 1 . . . . . . . . . . 1 . . . . . . . . . 1 . Recall Investigation 1 | . . . . . . . . . . . . . . . . . . . . . . . . . . . . . . . . 1 . Hauler Manifests 1 | . . . . . . . . . 1 . . . . . . . . . . . . . . . . . . . . . . . . Zone Layout 7 | . 4 . 1 . . . . . . . 1 . . . . . . . . . . . . . . . . . . . . 1 . EX-Prototype ID Bank 1 | . . . . . 1 . . . . . . . . . . . . . . . . . . . . . . . . . . . . Fabricator Hacks 5 | . . . . . . . . . . . 1 . . . . . . . . 2 . 1 . 1 . . . . . . . . . Network Status 3 | . . . . . . . . . . . . . . . . . . . . 1 . 1 . 1 . . . . . . . . . Build 2 | . . . . . . . . . . . 1 . . . . . . . . 1 . . . . . . . . . . . . . Repair Station Hacks 16 | . 10 . 2 . . . . . 2 . 2 . . . . . . . . . . . . . . . . . . . . . . Scan Component 8 | . 5 . 1 . . . . . 1 . 1 . . . . . . . . . . . . . . . . . . . . . . Repair 8 | . 5 . 1 . . . . . 1 . 1 . . . . . . . . . . . . . . . . . . . . . . Recycling Unit Hacks . | . . . . . . . . . . . . . . . . . . . . . . . . . . . . . . . . . . Scanalyzer 1 | . . . . . . . . . . . . . 1 . . . . . . . . . . . . . . . . . . . . Insert Component 1 | . . . . . . . . . . . . . 1 . . . . . . . . . . . . . . . . . . . . Garrison Access Hacks 20 | . . . . . . . 2 . 2 . . . 2 . . . . . . . . 2 . 2 . 2 . 4 . 2 . 2 . Unlock Access 8 | . . . . . . . 1 . 1 . . . 1 . . . . . . . . 1 . 1 . 1 . 1 . 1 . . . Seal Access 3 | . . . . . . . . . . . . . . . . . . . . . . . . . . . . 1 . . . 2 . Coupler Status 9 | . . . . . . . 1 . 1 . . . 1 . . . . . . . . 1 . 1 . 1 . 2 . 1 . . . Unauthorized Hacks 7 | . 1 . . . . . . . 1 . . . . . . . . . . . . 1 . . . 1 . 1 . . . 2 . Terminals . | . . . . . . . . . . . . . . . . . . . . . . . . . . . . . . . . . . Fabricators 2 | . . . . . . . . . . . . . . . . . . . . . . . . . . . . . . . . 2 . Fabnet 1 | . . . . . . . . . . . . . . . . . . . . . . . . . . . . . . . . 1 . Haulers 1 | . . . . . . . . . . . . . . . . . . . . . . . . . . . . . . . . 1 . Repair Stations . | . . . . . . . . . . . . . . . . . . . . . . . . . . . . . . . . . . Recycling Units 2 | . 1 . . . . . . . 1 . . . . . . . . . . . . . . . . . . . . . . . . Tunnel 2 | . 1 . . . . . . . 1 . . . . . . . . . . . . . . . . . . . . . . . . Scanalyzers . | . . . . . . . . . . . . . . . . . . . . . . . . . . . . . . . . . . Garrison Access 3 | . . . . . . . . . . . . . . . . . . . . . . 1 . . . 1 . 1 . . . . . Eject 3 | . . . . . . . . . . . . . . . . . . . . . . 1 . . . 1 . 1 . . . . . Data Cores Recovered 1 | . . . . . . . . . . . . . . . 1 . . . . . . . . . . . . . . . . . . Used . | . . . . . . . . . . . . . . . . . . . . . . . . . . . . . . . . . . Hacking Detections 56 | . 7 . 7 . . 1 . . 3 . 5 . 2 . 4 . . . . 3 . 3 . 3 . 1 . 2 . 4 . 9 2 Full Trace Events 5 | . . . 1 . . . . . . . 1 . 2 . . . . . . . . . . . . . . . . 1 . . . Feedback Events . | . . . . . . . . . . . . . . . . . . . . . . . . . . . . . . . . . . Feedback Blocked . | . . . . . . . . . . . . . . . . . . . . . . . . . . . . . . . . . . Robot Schematics Acquired 7 | . . . . . . . . . . . . . . . . . . 7 . . . . . . . . . . . . . . . Robots Built . | . . . . . . . . . . . . . . . . . . . . . . . . . . . . . . . . . . Authchips . | . . . . . . . . . . . . . . . . . . . . . . . . . . . . . . . . . . Time . | . . . . . . . . . . . . . . . . . . . . . . . . . . . . . . . . . . Total Robot Build Rating . | . . . . . . . . . . . . . . . . . . . . . . . . . . . . . . . . . . Part Schematics Acquired 11 | . . . . . . . . . . . . . . . 1 . . 10 . . . . . . . . . . . . . . . Parts Built 3 | . . . . . . . . . . . 2 . . . . . . . . 1 . . . . . . . . . . . . . Authchips . | . . . . . . . . . . . . . . . . . . . . . . . . . . . . . . . . . . Time 299 | . . . . . . . . . . . 95 . . . . . . . . 204 . . . . . . . . . . . . . Total Part Build Rating 18 | . . . . . . . . . . . 10 . . . . . . . . 8 . . . . . . . . . . . . . Parts Repaired 8 | . 5 . 1 . . . . . 1 . 1 . . . . . . . . . . . . . . . . . . . . . . Time 226 | . 130 . 26 . . . . . 26 . 44 . . . . . . . . . . . . . . . . . . . . . . Parts Recycled . | . . . . . . . . . . . . . . . . . . . . . . . . . . . . . . . . . . Recycled Matter . | . . . . . . . . . . . . . . . . . . . . . . . . . . . . . . . . . . Retrieved Matter . | . . . . . . . . . . . . . . . . . . . . . . . . . . . . . . . . . . Retrieved Components . | . . . . . . . . . . . . . . . . . . . . . . . . . . . . . . . . . . Parts Scanalyzed 1 | . . . . . . . . . . . . . 1 . . . . . . . . . . . . . . . . . . . . Part Schematics Acquired . | . . . . . . . . . . . . . . . . . . . . . . . . . . . . . . . . . . Parts Damaged . | . . . . . . . . . . . . . . . . . . . . . . . . . . . . . . . . . . Bothacking | -11 -10 -10 -9 -9 -9 -8 -8 -8 -8 -8 -7 -7 -7 -7 -7 -7 -7 -7 -6 -6 -6 -6 -6 -6 -6 -5 -5 -4 -4 -4 -4 -3 -3 ------------ Run | Scr Mat Min Mat Min Exi Min Mat Gar Mat Gar Fac Was Fac Gar Fac Low Low Dat Pro Fac Was Fac Gar Fac Gar Fac Gar Fac Gar Fac Gar Res Tes Used RIF Installer 8 | . . . . . . . . 1 . 1 . . . 1 . . . . . . . . 1 . 1 . 1 . 1 . 1 . . Coupler Efficiency 1 | . . . . . . . . . . 1 . . . . . . . . . . . . . . . . . . . . . . . Hotswap 1 | . . . . . . . . . . . . . . . . . . . . . . . . . . . . . 1 . . . . Zone Cloak 1 | . . . . . . . . . . . . . . . . . . . . . . . . . . . . . . . 1 . . Patrol Navigation 1 | . . . . . . . . . . . . . . 1 . . . . . . . . . . . . . . . . . . . Alert ID Control 1 | . . . . . . . . . . . . . . . . . . . . . . . 1 . . . . . . . . . . Autooverride 2 | . . . . . . . . . . . . . . . . . . . . . . . . . 1 . 1 . . . . . . Robots Hacked 84 | . . . . . . . . . . . . . . . . . . 1 . . 6 . . . . 2 10 14 7 1 13 30 . Non-combat 14 | . . . . . . . . . . . . . . . . . . . . . . . . . . 2 . 3 . . . 9 . Combat 70 | . . . . . . . . . . . . . . . . . . 1 . . 6 . . . . . 10 11 7 1 13 21 . Autooverrided 22 | . . . . . . . . . . . . . . . . . . . . . . . . . . . 2 2 3 . 4 11 . Robot Hacks Applied 72 | . . . . . . . . . . . . . . . . . . 1 . . 6 . . . . 3 9 17 4 1 10 21 . parse_system 2 | . . . . . . . . . . . . . . . . . . 1 . . . . . . . . . . . . 1 . . drop_inventory 7 | . . . . . . . . . . . . . . . . . . . . . . . . . . 1 . 1 . . . 5 . purge_threat 4 | . . . . . . . . . . . . . . . . . . . . . . . . . . 2 . 2 . . . . . map_route 5 | . . . . . . . . . . . . . . . . . . . . . . . . . . . . 1 . . . 4 . mark_security 1 | . . . . . . . . . . . . . . . . . . . . . . . . . . . . . . . . 1 . ignore_targets 6 | . . . . . . . . . . . . . . . . . . . . . 6 . . . . . . . . . . . . scatter_targeting 2 | . . . . . . . . . . . . . . . . . . . . . . . . . . . . 2 . . . . . overload_power 1 | . . . . . . . . . . . . . . . . . . . . . . . . . . . 1 . . . . . . amplify_resonance 1 | . . . . . . . . . . . . . . . . . . . . . . . . . . . . . . . . 1 . reboot_system 3 | . . . . . . . . . . . . . . . . . . . . . . . . . . . . 2 1 . . . . overwrite_iff 21 | . . . . . . . . . . . . . . . . . . . . . . . . . . . 7 5 . . 7 2 . formatsys_high 19 | . . . . . . . . . . . . . . . . . . . . . . . . . . . 1 4 3 1 2 8 . Relay Couplers Released 72 | . . . . . . . . 11 . . . . . 4 . . . . . . . 4 . . 6 4 9 5 17 . 12 . . Ejected 10 | . . . . . . . . . . . . . . . . . . . . . . 4 . . . 4 . 2 . . . . . Machine Destruction 62 | . . . . . . . . 11 . . . . . 4 . . . . . . . . . . 6 . 9 3 17 . 12 . . Attached 27 | . . . . . . . . . . . . . . . . . . . . . 1 . . 1 2 1 7 6 2 1 3 3 . Fabnet Peak Effective % . | . . . . . . . . . . . . . . . . . . . . . . . . . . . . . . . . . . Robots Rewired 1 | . . . . . . . . . . . . . . . . . . . . . . . . . . . . 1 . . . . . Allies Hacked . | . . . . . . . . . . . . . . . . . . . . . . . . . . . . . . . . . . Hacks Repelled . | . . . . . . . . . . . . . . . . . . . . . . . . . . . . . . . . . . Allies | -11 -10 -10 -9 -9 -9 -8 -8 -8 -8 -8 -7 -7 -7 -7 -7 -7 -7 -7 -6 -6 -6 -6 -6 -6 -6 -5 -5 -4 -4 -4 -4 -3 -3 -------- Run | Scr Mat Min Mat Min Exi Min Mat Gar Mat Gar Fac Was Fac Gar Fac Low Low Dat Pro Fac Was Fac Gar Fac Gar Fac Gar Fac Gar Fac Gar Res Tes Total Allies 81 | . . 3 . . . . . . . . . 20 . . . . . . 1 . . . . . . . 9 9 6 1 12 20 . Largest Group 20 | . . 3 2 . . . . . . . . 20 13 . . . . . 1 . . . . . . . 2 2 2 1 2 4 . Highest-Rated Group 490 | . . 40 32 . . . . . . . . 490 280 . . . . . 96 . . . . . . . 70 112 112 49 96 338 . Highest-Rated Ally 137 | . . 16 16 . . . . . . . . 35 31 . . . . . 96 . . . . . . . 49 56 56 49 49 137 . Total Orders . | . . . . . . . . . . . . . . . . . . . . . . . . . . . . . . . . . . Ally Attacks 306 | . . 17 14 . . . . . . . . . 55 . . . . . 2 . . . . . . . 31 37 28 . 27 95 . Total Damage 9444 | . . 158 108 . . . . . . . . . 740 . . . . . 45 . . . . . . . 596 1326 1175 . 961 4335 . Kills 57 | . . 4 4 . . . . . . . . . 10 . . . . . . . . . . . . . 5 11 5 . 1 17 . Allies Corrupted . | . . . . . . . . . . . . . . . . . . . . . . . . . . . . . . . . . . Allies Melted . | . . . . . . . . . . . . . . . . . . . . . . . . . . . . . . . . . . Intel | -11 -10 -10 -9 -9 -9 -8 -8 -8 -8 -8 -7 -7 -7 -7 -7 -7 -7 -7 -6 -6 -6 -6 -6 -6 -6 -5 -5 -4 -4 -4 -4 -3 -3 ------- Run | Scr Mat Min Mat Min Exi Min Mat Gar Mat Gar Fac Was Fac Gar Fac Low Low Dat Pro Fac Was Fac Gar Fac Gar Fac Gar Fac Gar Fac Gar Res Tes Robot Analysis Total 9 | . 3 . 2 . . 3 . . 1 . . . . . . . . . . . . . . . . . . . . . . . . Derelict Logs Recovered 5 | . . 1 . 2 . . . . . . . . . . . . . . 2 . . . . . . . . . . . . . . Drone Launches . | . . . . . . . . . . . . . . . . . . . . . . . . . . . . . . . . . . Drone Recoveries . | . . . . . . . . . . . . . . . . . . . . . . . . . . . . . . . . . . Exploration | -11 -10 -10 -9 -9 -9 -8 -8 -8 -8 -8 -7 -7 -7 -7 -7 -7 -7 -7 -6 -6 -6 -6 -6 -6 -6 -5 -5 -4 -4 -4 -4 -3 -3 ------------- Run | Scr Mat Min Mat Min Exi Min Mat Gar Mat Gar Fac Was Fac Gar Fac Low Low Dat Pro Fac Was Fac Gar Fac Gar Fac Gar Fac Gar Fac Gar Res Tes Turns Passed 27410 | 130 1767 1801 965 469 647 895 23 939 676 308 1473 567 506 585 571 1072 443 254 616 931 546 565 262 793 1170 171 1078 848 1556 277 1021 3168 317 Spaces Moved 12938 | 52 624 709 408 273 393 517 13 498 277 149 707 315 278 296 337 560 237 155 313 382 142 277 128 387 634 83 506 387 664 153 496 1354 234 Core 17 | . . . . . . . . . . . . . . . . . . . . . . . . . . . . . . . . 17 . Treads 12107 | 9 624 709 408 273 393 517 13 498 277 149 707 315 278 296 337 560 237 155 144 . 94 277 128 387 634 83 506 387 664 153 496 1337 62 Legs 642 | 43 . . . . . . . . . . . . . . . . . . 169 382 48 . . . . . . . . . . . . Wheels . | . . . . . . . . . . . . . . . . . . . . . . . . . . . . . . . . . . Hover 172 | . . . . . . . . . . . . . . . . . . . . . . . . . . . . . . . . . 172 Flight . | . . . . . . . . . . . . . . . . . . . . . . . . . . . . . . . . . . Fastest Speed 50 | 120 160 240 160 160 160 160 160 160 160 170 170 160 160 160 160 160 160 160 160 190 160 160 160 160 160 160 160 160 152 152 150 50 56 Average Speed 169 | 126 217 240 160 160 160 160 160 160 162 170 170 161 160 160 160 160 160 160 177 190 172 160 160 160 160 160 160 160 192 152 159 152 115 Slowest Speed 320 | 160 240 320 160 160 160 160 160 160 240 170 170 250 160 160 160 160 160 160 240 190 260 160 160 160 160 160 160 240 240 152 232 180 180 Overloaded Moves . | . . . . . . . . . . . . . . . . . . . . . . . . . . . . . . . . . . Propulsion Burnouts . | . . . . . . . . . . . . . . . . . . . . . . . . . . . . . . . . . . Robots Hopped . | . . . . . . . . . . . . . . . . . . . . . . . . . . . . . . . . . . Cave-ins Triggered 1 | . . . . . . . . . . . . . . . . . . . . . . . . . . . . . . . . 1 . Exploration Rate (%) 47 | 4 92 95 49 65 70 95 4 80 23 47 18 94 13 51 11 69 50 73 54 14 69 10 35 14 79 2 66 12 88 7 80 45 38 Regions Visited 33 Branch Regions 9 Pre-discovered Areas 6 | . 1 . . 2 1 . . . 1 . . . . . . . . 1 . . . . . . . . . . . . . . . Known Exits Taken 12 | . . . 1 1 . . 1 . 1 . . . 1 . 1 . . . . . . 1 . 1 . 1 . 1 . 1 . 1 . Unknown Exits Taken 9 | 1 1 1 . . 1 1 . . . . . . . . . 1 1 1 1 . . . . . . . . . . . . . . Scrap Searched 14 | . . 1 . 1 . 2 . . . . . . . . . 7 . . 3 . . . . . . . . . . . . . . Spaces Dug 145 | . 2 . 4 18 . 20 . 11 . 1 4 . . . 1 22 . . 1 3 . 2 9 5 . . 11 7 . 1 . 22 1 Terrain Destroyed 1034 | . 2 . 4 30 . 27 . 21 . 1 13 . . 14 1 52 102 . 16 22 . 4 24 12 41 . 20 68 59 3 13 484 1 Melee 21 | . 1 . 4 . . . . 2 . . 4 . . . 1 7 . . 1 1 . . . . . . . . . . . . . Projectile 151 | . 1 . . . . . . . . . . . . . . . 1 . . 5 . 4 . 12 . . 1 24 7 3 2 90 1 AOE 861 | . . . . 30 . 27 . 19 . 1 9 . . 14 . 45 101 . 15 16 . . 24 . 41 . 19 44 52 . 11 393 . Terrain Rammed . | . . . . . . . . . . . . . . . . . . . . . . . . . . . . . . . . . . Walls Destroyed . | . . . . . . . . . . . . . . . . . . . . . . . . . . . . . . . . . . Machines Disabled . | . . . . . . . . . . . . . . . . . . . . . . . . . . . . . . . . . . Actions | -11 -10 -10 -9 -9 -9 -8 -8 -8 -8 -8 -7 -7 -7 -7 -7 -7 -7 -7 -6 -6 -6 -6 -6 -6 -6 -5 -5 -4 -4 -4 -4 -3 -3 --------- Run | Scr Mat Min Mat Min Exi Min Mat Gar Mat Gar Fac Was Fac Gar Fac Low Low Dat Pro Fac Was Fac Gar Fac Gar Fac Gar Fac Gar Fac Gar Res Tes Total 16423 | 88 917 775 594 289 412 553 15 570 437 180 867 367 309 358 365 651 265 161 350 538 297 347 160 482 715 110 663 568 915 190 666 1972 277 Wait 957 | 9 171 19 55 3 . 8 . 8 57 16 59 1 14 13 5 20 2 . . 84 26 19 6 18 7 12 33 30 56 8 72 126 . Move 12911 | 51 623 708 407 272 392 516 13 497 277 148 707 314 278 295 336 559 236 154 312 382 141 276 127 387 633 82 505 386 663 153 495 1352 234 Hop . | . . . . . . . . . . . . . . . . . . . . . . . . . . . . . . . . . . Pick Up 232 | 3 22 5 15 1 9 . . 8 18 . 8 12 . 5 3 4 . . 4 9 7 2 . 6 5 2 11 12 14 5 6 31 5 Fast Attach 175 | 1 8 3 4 1 . . . 2 5 . 5 5 . 3 5 2 . 2 5 7 5 1 3 7 8 1 11 12 17 4 16 24 8 Attach 93 | . . . 4 . . 1 2 4 . . 2 1 . 4 1 2 . 1 2 3 . . . 4 3 1 13 7 8 1 2 25 2 Detach 48 | . . . 1 . . . . . . . 1 . . . . 2 . 1 1 . 4 . . 1 1 1 5 4 8 . 4 11 3 Swap 305 | 4 14 9 14 1 . 8 . 8 10 3 18 6 1 7 3 13 6 . 5 6 11 6 6 8 6 2 12 14 14 7 9 73 1 Drop 298 | 3 15 9 22 1 9 1 . 4 28 . 10 21 . 3 8 4 . 2 8 13 22 1 2 8 9 . 6 13 17 7 17 32 3 Fire 1294 | 17 62 16 62 10 2 16 . 24 40 13 52 2 12 28 2 35 21 1 12 28 81 36 16 43 43 9 67 90 110 5 45 291 3 Melee 46 | . 1 . 4 . . . . 15 . . 5 5 3 . 1 10 . . 1 1 . . . . . . . . . . . . . Ram 3 | . . . . . . . . . . . . . . . . . . . . . . . . . . . . . . . . . 3 Kick . | . . . . . . . . . . . . . . . . . . . . . . . . . . . . . . . . . . Crush 32 | . 1 6 6 . . 3 . . 2 . . . 1 . 1 . . . . . . 6 . . . . . . . . . 6 . Escape Stasis 29 | . . . . . . . . . . . . . . . . . . . . 5 . . . . . . . . 8 . . 1 15 Rewire . | . . . . . . . . . . . . . . . . . . . . . . . . . . . . . . . . . . Trap . | . . . . . . . . . . . . . . . . . . . . . . . . . . . . . . . . . . Miscellaneous . | . . . . . . . . . . . . . . . . . . . . . . . . . . . . . . . . . . Route ------- -11/Scrapyard -10/Materials (discovered 5 exits: *Mat x3 / [*Min x2]) -10/Mines (discovered 2 exits: *Mat x2) -9/Materials (discovered 3 exits: *Mat / *Min x2) -9/Mines (discovered 2 exits: *Mat / *Exi) -9/Exiles (discovered 2 exits: *Min x2) -8/Mines (discovered 2 exits: *Mat x2) -8/Materials -8/Garrison (discovered 3 exits: *Mat x3) -8/Materials -8/Garrison -7/Factory (discovered 3 exits: *Sto x2 / *Low) -7/Waste -7/Factory (discovered 2 exits: *Fac / Gar) -7/Garrison (discovered 2 exits: *Fac x2) -7/Factory (discovered 4 exits: Sto x2 / *Low x2) -7/Lower Caves -7/Lower Caves (discovered 2 exits: *Fac / *Dat) -7/Data Miner -6/Proximity Caves -6/Factory -6/Waste -6/Factory (discovered 2 exits: *Fac / Gar) -6/Garrison -6/Factory (discovered 3 exits: *Low x2 / Gar) -6/Garrison (discovered 3 exits: *Fac x3) -5/Factory -5/Garrison (discovered 3 exits: *Fac x3) -4/Factory -4/Garrison (discovered 3 exits: *Fac x3) -4/Factory (discovered 2 exits: *Upp / Gar) -4/Garrison (discovered 3 exits: *Res x3) -3/Research (discovered 2 exits: *Tes x2) -3/Testing History --------- Turn | Location | Event 16 | -11/Scrapyard | Discovered new exit (range 3) 131 | -11/Scrapyard | Entered Materials 303 | -10/Materials | Build established: Mutant 349 | -10/Materials | Repaired Lgt. Treads 376 | -10/Materials | Repaired Lgt. Treads 404 | -10/Materials | Repaired Lgt. Assault Rifle 431 | -10/Materials | Repaired Lgt. Ion Engine 459 | -10/Materials | Repaired Seismic Detector 512 | -10/Materials | Discovered new exit (range 7) 598 | -10/Materials | Discovered new exit (range 14) 697 | -10/Materials | Discovered new exit (range 11) 1283 | -10/Materials | Discovered new exit (range 10) 1517 | -10/Materials | Discovered new exit (range 12) 1601 | -10/Materials | Central database locked down 1898 | -10/Materials | Entered Mines 2181 | -10/Mines | Assisted by bots powering up and referring to "LRC-V3" 2572 | -10/Mines | Discovered new exit (range 9) 3075 | -10/Mines | Discovered new exit (range 9) 3207 | -10/Mines | Build established: Scavenger-Mutant 3699 | -10/Mines | Entered Materials 3699 | -9/Materials | Accompanied by 2 allies 3699 | -9/Materials | Evolved 2 slots: Propulsion x1, Utility x1 4045 | -9/Materials | Identified exit to Mines 4161 | -9/Materials | Discovered new exit (range 10) 4313 | -9/Materials | Repaired Lgt. Treads 4664 | -9/Materials | Entered Mines 4840 | -9/Mines | Discovered new exit (range 8) 4895 | -9/Mines | Build established: Mutant 4944 | -9/Mines | Identified exit to Exiles 5000 | -9/Mines | Learned location of Storage (-7) 5127 | -9/Mines | Deemed a non-threat by the Exiles lab entrance 5133 | -9/Mines | Entered Exiles 5154 | -9/Exiles | Discovered new exit (range 15) 5173 | -9/Exiles | Met 8R-AWN 5201 | -9/Exiles | Met EX-HEX 5258 | -9/Exiles | Met EX-DEC 5410 | -9/Exiles | Discovered new exit (range 14) 5495 | -9/Exiles | Learned location of Zion (-6) 5528 | -9/Exiles | Met EX-BIN 5551 | -9/Exiles | Aligned with FarCom system 5552 | -9/Exiles | Given EX-Vault access code 5592 | -9/Exiles | Opened EX-Vault 5604 | -9/Exiles | Found 0b10 Alert Chip 5606 | -9/Exiles | Found AWS/Gauss 5610 | -9/Exiles | Found Supersonic Drone Bay 5642 | -9/Exiles | Warned to stay clear of 0b10 Research branches 5660 | -9/Exiles | Exiles lab attacked by MAIN.C 5775 | -9/Exiles | Attacked by the Exiles 5780 | -9/Exiles | Entered Mines 6014 | -8/Mines | Discovered new exit (range 14) 6049 | -8/Mines | Discovered new exit (range 5) 6675 | -8/Mines | Entered Materials 6675 | -8/Materials | Evolved 2 slots: Propulsion x1, Utility x1 6698 | -8/Materials | Identified exit to Garrison 6698 | -8/Materials | Entered Garrison 6758 | -8/Garrison | Triggered checkpoint 6824 | -8/Garrison | Destroyed 9 combat bots 6873 | -8/Garrison | Discovered new exit (range 13) 6946 | -8/Garrison | Triggered checkpoint 6966 | -8/Garrison | Build established: Scavenger-Mutant 7014 | -8/Garrison | Discovered new exit (range 9) 7174 | -8/Garrison | Discovered new exit (range 14) 7203 | -8/Garrison | Installed Relay Interface Framework 7290 | -8/Garrison | Garrison Relay disabled 7394 | -8/Garrison | Garrison Relay disabled 7562 | -8/Garrison | Triggered checkpoint 7568 | -8/Garrison | Lost 4 parts (2n1u1w) 7583 | -8/Garrison | Garrison Relay disabled 7637 | -8/Garrison | Entered Materials 8141 | -8/Materials | Repaired Lgt. Treads 8313 | -8/Materials | Identified exit to Garrison 8313 | -8/Materials | Entered Garrison 8406 | -8/Garrison | Triggered checkpoint 8480 | -8/Garrison | Triggered checkpoint 8534 | -8/Garrison | Build established: Mutant 8578 | -8/Garrison | Discovered new exit (range 15) 8614 | -8/Garrison | Expanded RIF knowledge: Coupler Efficiency 8621 | -8/Garrison | Entered Factory 8621 | -7/Factory | Evolved 2 slots: Power x1, Utility x1 8622 | -7/Factory | Identified exit to Storage 8817 | -7/Factory | Fabricated Power Sword? 8939 | -7/Factory | Discovered new exit (range 5) 9296 | -7/Factory | Discovered exit to Storage (range 9) 9511 | -7/Factory | Identified exit to Lower Caves 10086 | -7/Factory | Repaired Imp. Medium Armor Plating 10094 | -7/Factory | Sucked down chute 10094 | -7/Factory | Entered Waste 10095 | -7/Waste | Joined by Warlord forces that had cleared the area 10148 | -7/Waste | Found Imp. Powered Armor 10383 | -7/Waste | Discovered new exit (range 12) 10661 | -7/Waste | Entered Factory 10661 | -7/Factory | Accompanied by 13 allies 10981 | -7/Factory | Assembled infested ambush trap array 11159 | -7/Factory | Discovered new exit (range 16) 11167 | -7/Factory | Identified exit to Garrison 11167 | -7/Factory | Entered Garrison 11214 | -7/Garrison | Triggered checkpoint 11225 | -7/Garrison | Triggered checkpoint 11266 | -7/Garrison | Destroyed 7 combat bots 11367 | -7/Garrison | Discovered new exit (range 10) 11422 | -7/Garrison | Triggered checkpoint 11512 | -7/Garrison | Triggered checkpoint 11567 | -7/Garrison | Discovered new exit (range 12) 11598 | -7/Garrison | Expanded RIF knowledge: Patrol Navigation 11641 | -7/Garrison | Triggered checkpoint 11686 | -7/Garrison | Lost 3 parts (1p1n1u) 11689 | -7/Garrison | Garrison Relay disabled 11752 | -7/Garrison | Entered Factory 12011 | -7/Factory | Build established: Bothacker-Mutant 12323 | -7/Factory | Entered Lower Caves 12504 | -7/Lower Caves | Encountered a Warlord checkpoint 12641 | -7/Lower Caves | Spotted B-75 Beast 13289 | -7/Lower Caves | Discovered new exit (range 5) 13395 | -7/Lower Caves | Entered another Lower Caves area 13451 | -7/Lower Caves | Discovered new exit (range 14) 13819 | -7/Lower Caves | Discovered new exit (range 14) 13838 | -7/Lower Caves | Entered Data Miner 13839 | -7/Data Miner | Discovered new exit (range 6) 13870 | -7/Data Miner | Met Data Miner 13900 | -7/Data Miner | Learned location of Section 7 (-2) 13900 | -7/Data Miner | Acquired the access code to Warlord's prototype stash 13927 | -7/Data Miner | Received God Mode back door access code from Data Miner 14092 | -7/Data Miner | Entered Proximity Caves 14172 | -6/Proximity Caves | Learned 4 Factory zone layouts 14194 | -6/Proximity Caves | Escorted by Enhanced Grunt 14453 | -6/Proximity Caves | Learned Factory stockpile data 14684 | -6/Proximity Caves | Discovered new exit (range 12) 14708 | -6/Proximity Caves | Entered Factory 14708 | -6/Factory | Evolved 2 slots: Utility x2 15384 | -6/Factory | Fabricated Exp. Coolant Injector (x1) 15639 | -6/Factory | Sucked down chute 15639 | -6/Factory | Entered Waste 15654 | -6/Waste | EMP discharged 15698 | -6/Waste | Spotted C-40 Crusher 15701 | -6/Waste | Spotted C-40 Crusher 15704 | -6/Waste | Spotted C-40 Crusher 15718 | -6/Waste | Spotted C-40 Crusher 15754 | -6/Waste | EMP discharged 15789 | -6/Waste | Spotted C-40 Crusher 15849 | -6/Waste | Spotted C-40 Crusher 15854 | -6/Waste | EMP discharged 15854 | -6/Waste | System corruption reached 10% 15875 | -6/Waste | Destroyed C-40 Crusher 15886 | -6/Waste | Found Damper Plating 15911 | -6/Waste | Destroyed C-40 Crusher 15954 | -6/Waste | EMP discharged 16020 | -6/Waste | Destroyed C-40 Crusher 16043 | -6/Waste | Found Damper Plating 16054 | -6/Waste | EMP discharged 16055 | -6/Waste | Destroyed C-40 Crusher 16068 | -6/Waste | Destroyed C-40 Crusher 16104 | -6/Waste | Destroyed C-40 Crusher 16128 | -6/Waste | Found Damper Plating 16154 | -6/Waste | EMP discharged 16168 | -6/Waste | Discovered new exit (range 12) 16185 | -6/Waste | Entered Factory 16192 | -6/Factory | Build established: Scavenger-Mutant 16232 | -6/Factory | Spotted B-75 Beast 16272 | -6/Factory | Discovered new exit (range 8) 16286 | -6/Factory | Identified exit to Factory 16731 | -6/Factory | Identified exit to Garrison 16750 | -6/Factory | Entered Garrison 16845 | -6/Garrison | Triggered checkpoint 16869 | -6/Garrison | Triggered checkpoint 16876 | -6/Garrison | Triggered checkpoint 16910 | -6/Garrison | Destroyed 15 combat bots 16954 | -6/Garrison | Discovered new exit (range 13) 16985 | -6/Garrison | Expanded RIF knowledge: Alert ID Control 17012 | -6/Garrison | Entered Factory 17485 | -6/Factory | Identified exit to Lower Caves 17805 | -6/Factory | Identified exit to Garrison 17805 | -6/Factory | Entered Garrison 17871 | -6/Garrison | Triggered checkpoint 17912 | -6/Garrison | Triggered checkpoint 17914 | -6/Garrison | Triggered checkpoint 17955 | -6/Garrison | Destroyed 15 combat bots 18022 | -6/Garrison | Discovered exit to Factory (range 15) 18181 | -6/Garrison | Discovered exit to Factory (range 13) 18212 | -6/Garrison | Expanded RIF knowledge: Autooverride 18286 | -6/Garrison | Build established: Mutant 18658 | -6/Garrison | Triggered checkpoint 18681 | -6/Garrison | Garrison Relay disabled 18838 | -6/Garrison | Triggered checkpoint 18910 | -6/Garrison | Garrison Relay disabled 18961 | -6/Garrison | Discovered exit to Factory (range 10) 18975 | -6/Garrison | Entered Factory 18975 | -5/Factory | Evolved 2 slots: Utility x2 19135 | -5/Factory | Identified exit to Garrison 19146 | -5/Factory | Entered Garrison 19204 | -5/Garrison | Triggered checkpoint 19214 | -5/Garrison | Triggered checkpoint 19241 | -5/Garrison | System corruption reached 10% 19271 | -5/Garrison | Lost 6 parts (1p1n3u1w) 19381 | -5/Garrison | Spotted B-75 Beast 19381 | -5/Garrison | Spotted B-75 Beast 19423 | -5/Garrison | Spotted B-75 Beast 19431 | -5/Garrison | Build established: Botlord-Mutant 19463 | -5/Garrison | Destroyed B-75 Beast 19483 | -5/Garrison | Lost 3 parts (2u1w) 19487 | -5/Garrison | Triggered checkpoint 19609 | -5/Garrison | Discovered new exit (range 13) 19744 | -5/Garrison | Discovered new exit (range 10) 19772 | -5/Garrison | Expanded RIF knowledge: Autooverride 19815 | -5/Garrison | Triggered checkpoint 19877 | -5/Garrison | Garrison Relay disabled 20023 | -5/Garrison | Discovered new exit (range 10) 20085 | -5/Garrison | Triggered checkpoint 20134 | -5/Garrison | Garrison Relay disabled 20224 | -5/Garrison | Entered Factory 20224 | -4/Factory | Accompanied by 1 ally 20224 | -4/Factory | Evolved 2 slots: Utility x2 20277 | -4/Factory | P-70 Sage assimilated allied Sentinel 6a 20369 | -4/Factory | Garrison activated, responded to threat 20460 | -4/Factory | Found Quantum Capacitor 20834 | -4/Factory | P-70 Sage assimilated allied Sentinel 7a 20846 | -4/Factory | Incoming investigation squad redirected 20971 | -4/Factory | Found Prototype Launcher 20971 | -4/Factory | Identified Mni. Smartbomb Launcher 20976 | -4/Factory | Found Mni. Smartbomb Launcher 21004 | -4/Factory | Identified exit to Garrison 21026 | -4/Factory | Incoming investigation squad redirected 21028 | -4/Factory | Garrison activated, responded to threat 21072 | -4/Factory | Entered Garrison 21189 | -4/Garrison | Triggered checkpoint 21215 | -4/Garrison | Triggered checkpoint 21253 | -4/Garrison | Triggered checkpoint 21256 | -4/Garrison | Triggered checkpoint 21371 | -4/Garrison | Discovered new exit (range 13) 21462 | -4/Garrison | Triggered checkpoint 21521 | -4/Garrison | Garrison Relay disabled 21716 | -4/Garrison | Discovered new exit (range 9) 21845 | -4/Garrison | Discovered new exit (range 10) 21883 | -4/Garrison | Expanded RIF knowledge: Hotswap 21954 | -4/Garrison | Triggered checkpoint 22098 | -4/Garrison | Garrison Relay disabled 22288 | -4/Garrison | Triggered checkpoint 22323 | -4/Garrison | Garrison Relay disabled 22488 | -4/Garrison | Triggered checkpoint 22582 | -4/Garrison | Garrison Relay disabled 22628 | -4/Garrison | Entered Factory 22850 | -4/Factory | Discovered new exit (range 6) 22858 | -4/Factory | Identified exit to Upper Caves 22905 | -4/Factory | Identified exit to Garrison 22905 | -4/Factory | Entered Garrison 22905 | -4/Garrison | Accompanied by 1 ally 22968 | -4/Garrison | Triggered checkpoint 22975 | -4/Garrison | Spotted B-86 Titan 22975 | -4/Garrison | Triggered checkpoint 22998 | -4/Garrison | Triggered checkpoint 23021 | -4/Garrison | Destroyed B-86 Titan 23170 | -4/Garrison | Discovered new exit (range 12) 23326 | -4/Garrison | Discovered new exit (range 9) 23351 | -4/Garrison | Expanded RIF knowledge: Zone Cloak 23412 | -4/Garrison | Triggered checkpoint 23492 | -4/Garrison | Garrison Relay disabled 23608 | -4/Garrison | Triggered checkpoint 23656 | -4/Garrison | Garrison Relay disabled 23729 | -4/Garrison | Discovered new exit (range 10) 23849 | -4/Garrison | Triggered checkpoint 23870 | -4/Garrison | Garrison Relay disabled 23926 | -4/Garrison | Entered Research 23926 | -3/Research | Evolved 2 slots: Propulsion x2 23989 | -3/Research | Found Prototype Hackware 23989 | -3/Research | Identified Exp. System Shield 24102 | -3/Research | Found Prototype Launcher 24102 | -3/Research | Identified Tactical Quantum Warhead 24111 | -3/Research | Found Tactical Quantum Warhead 24145 | -3/Research | Spotted B-86 Titan 24208 | -3/Research | Destroyed B-86 Titan 24366 | -3/Research | System corruption reached 10% 24372 | -3/Research | Found Quantum Capacitor 24479 | -3/Research | P-80 Master assimilated allied Warden 8a 24609 | -3/Research | Garrison activated, responded to threat 24624 | -3/Research | Found Prototype Device 24624 | -3/Research | Identified Active Sensor Suite 24744 | -3/Research | Incoming investigation squad redirected 24892 | -3/Research | Incoming investigation squad redirected 25359 | -3/Research | Build established: Botlord-Skirmisher 25426 | -3/Research | Search patrols dispatched 25487 | -3/Research | Incoming investigation squad redirected 25637 | -3/Research | Cargo convoy interrupted 25651 | -3/Research | Incoming investigation squad redirected 25716 | -3/Research | Crushed by falling debris 25724 | -3/Research | Incoming investigation squad redirected 25818 | -3/Research | Found Prototype Device 25818 | -3/Research | Identified Adv. Kinecellerator 25860 | -3/Research | Spotted B-86 Titan 25866 | -3/Research | Allies destroyed B-86 Titan 25894 | -3/Research | Incoming investigation squad redirected 25926 | -3/Research | Search patrols dispatched 25957 | -3/Research | Build established: Botlord-Mutant 26040 | -3/Research | Spotted B-86 Titan 26233 | -3/Research | Destroyed 7 combat bots 26344 | -3/Research | Lost 3 parts (1n1u1w) 26388 | -3/Research | Found Gamma Bomb Array 26390 | -3/Research | Found Gamma Bomb Array 26393 | -3/Research | Found Gamma Bomb Array 26416 | -3/Research | Identified exit to Testing 26426 | -3/Research | First assault squad dispatched 26446 | -3/Research | Incoming assault squad redirected 26452 | -3/Research | Incoming assault squad redirected 26695 | -3/Research | Incoming assault squad redirected 26827 | -3/Research | Found Fusion Bomb Launcher 26842 | -3/Research | High security lockdown imminent 26922 | -3/Research | High security lockdown engaged 27015 | -3/Research | Lost 5 parts (1n4u) 27028 | -3/Research | Destroyed 13 combat bots 27083 | -3/Research | Released all parts (8) 27085 | -3/Research | Core integrity fell below 50% 27088 | -3/Research | System corruption reached 30% 27094 | -3/Research | Core integrity fell below 20% 27094 | -3/Research | Entered Testing 27111 | -3/Testing | Lost 11 parts (1p4n2u4w) 27125 | -3/Testing | Found Prototype Energy Cannon 27128 | -3/Testing | Found Prototype Energy Cannon 27344 | -3/Testing | First assault squad dispatched 27384 | -3/Testing | Scanned by Researcher 27398 | -3/Testing | Spotted Striker 27411 | -3/Testing | Destroyed by P-80 Master with Gamma Rifle Last Messages --------------- 27388_ Held in stasis. 27388_ C-55 Analyst is analyzing... 27389_ Held in stasis. 27390_ Hardcell Cannon destroyed. 27393_ P-80 Master misfires. 27393_ Door malfunctions. 27394_ P-80 Master resets P-80 Master, system corruption cleaned. 27394_ P-80 Master resets C-55 Analyst, system corruption cleaned. 27397_ Held in stasis. 27397_ C-55 Analyst is analyzing... 27401_ Held in stasis. 27401_ C-55 Analyst is analyzing... 27406_ Slammed into P-80 Master. 27406_ P-80 Master knocked back. 27407_ DVZC 42DEQG|%IMJSI/ANSSABSS JGF 27407_ Slammed into P-80 Master. 27408_ Held in stasis. 27408_ C-55 Analyst is analyzing... 27409_ P-80 Master resets P-80 Master, system corruption cleaned. 27411_ Antigrav Array destroyed. Map ----- +----------------------------------------------------+ | ?????????????????????????????###### | | ?????????????????????????????# | | ?????????????????????????????# | | ??????????????????????""?????# | | ??????????????????###""F"##### | | ????????????????? # | | ????????????????? # | | ???????? ????? # | | ???????# ????? # | | ???????# ??????############ # | | ???????# ?????????????????# " | | ???????# #????????????????# " | | ???????# #????????????????# | | ???????# ????????????????# " | | ???????# ????????????????# " | | ???????+ ????????????????# # | | ???????# #????????????????# # | | ???????# #????????????????# # | | ???????# #############+#### # | | ???????# | | ???????# | | ???????# | | ???????# C | | ?######### c#############/### ## | | # ## #??????# # ## | | # """ !##@ ##?????# # ## | | # """ # p #?????# # ## | | # """ + p #?????# """"" + ## | | # #p #?????# """"" # + | | # "" # #?????# """"" # ## | | # """## ##?????# """"" ####### | | # S"## #??????# ? #?????# | | #[ """## #??????#?? #?????# | | # """## #????????########?????? | | # ## #?????????????????????? | | #####????? #?????????????????????? | | ?????????? #?????????????????????? | | ?????????? #?????????????????????? | | ?????????? #?????????????????????? | | ?????????? ?????????????????????? | | ?????????? #?????????????????????? | | ??????????++#?????????????????????? | | ??????????????????????????????????? | | ??????????????????????????????????? | | ??????????????????????????????????? | | ??????????????????????????????????? | | ??????????????????????????????????? | | ??????????????????????????????????? | | ??????????????????????????????????? | | ??????????????????????????????????? | +----------------------------------------------------+ Best States ------------- Heat Dissipation 88 Coolant Potential 120 Energy Generation 43 Energy Capacity 1085 Matter Stores 550 Matter Capacity 800 Sight Range 16 Robot Scan Range 20 Terrain Scan Range 14 Terrain Scan Density 10 Additional Mass Support 16 Corruption Containment 8 Armor Coverage 3200 Resistance: KI 30 Resistance: TH 15 Resistance: EM 90 Core Shielding 30 Propulsion Shielding 66 Evasion (%) 55 Targeting Accuracy 16 Core Analysis 6 Recoil Reduction 6 Kinecelleration 50 Salvage Targeting 4 Offensive Hacking 12 Defensive Hacking 16 Relay Coupler Types 5 Relay Coupler Value 133 Authchip Count 1 Item Schematics ----------------- Imp. Hacking Suite | -7/Factory | Hacked Combat Drone Bay | -7/Data Miner | Free Lgt. Regenerative Plating | -7/Data Miner | Free Biomechanical Wings | -7/Data Miner | Free Gravity Neutralizer | -7/Data Miner | Free Cld. Plasma Cannon | -7/Data Miner | Free Arm. Medium Treads | -7/Data Miner | Free Imp. Focal Shield | -7/Data Miner | Free Phase Cannon | -7/Data Miner | Free Imp. System Guard | -7/Data Miner | Free Imp. Arc Projector | -7/Data Miner | Free Robot Schematics ------------------ X-57 Shotgunner | -7/Data Miner | Free X-67 Chaingunner | -7/Data Miner | Free G-47 Trooper | -7/Data Miner | Free R-10 Processor | -7/Data Miner | Free X-72 Disruptor | -7/Data Miner | Free L-41 Fighter | -7/Data Miner | Free B-48 Gladiator | -7/Data Miner | Free Fabricated ------------ Power Sword | x2 | -7/Factory | Preloaded Exp. Coolant Injector | x1 | -6/Factory | Preloaded Alien Tech Used ----------------- None Achievements -------------- None Challenges ------------ None Game ------ Seed StorageGravitonAutohacker Manual? 0 Play Time 05:54:02 Cumulative 1223.5 hours Start 2022.04.23 @ 15:06:11 End 2022.04.24 @ 03:38:03 Sessions 1 Manual Loads 0 Difficulty Rogue Special Mode None Game No. 380 Rogue 380 Adventurer 0 Explorer 0 Win Type - Total 71 Types 13/18/13/3/1/2/18/2/1 Lore% 96 Gallery% 96 Achievement% 88 Wizard Run 0 Options --------- ASCII 0 Keyboard 0 Movement Numpad Keybinds 0 Fullscreen 2 Font 24/Smallcaps Map View 76x50 Tactical HUD 1 Map Filters NONE Filters NONE Steam 1 RUN: 954ccbe9-e2a5-4e0d-b651-8850e410960a